[Event "*** Titled Tuesday Blitz"]
[Site "Chess.com"]
[Date "2019.07.02"]
[Round "7"]
[White "GameOverBro"]
[Black "GMHess"]
[Result "0-1"]
[WhiteElo "2485"]
[BlackElo "2729"]
[TimeControl "180+2"]
[EndTime "14:33:42 PDT"]
[Termination "GMHess won by resignation"]

1. e4 {[%clk 0:02:44.3]} 1... d6 {[%clk 0:02:58.8]} 2. d4 {[%clk 0:02:44.4]}
2... Nf6 {[%clk 0:03:00.7]} 3. Nc3 {[%clk 0:02:45.4]} 3... c6 {[%clk 0:03:01.9]}
4. h3 {[%clk 0:02:45.9]} 4... Nbd7 {[%clk 0:03:00.9]} 5. a4 {[%clk 0:02:44.8]}
5... e5 {[%clk 0:03:02.2]} 6. Nge2 {[%clk 0:02:44.9]} 6... Be7 {[%clk
0:03:03.4]} 7. g3 {[%clk 0:02:46.2]} 7... O-O {[%clk 0:03:04.7]} 8. Bg2 {[%clk
0:02:47.8]} 8... Re8 {[%clk 0:03:06.1]} 9. O-O {[%clk 0:02:48.5]} 9... Bf8
{[%clk 0:03:07.7]} 10. f4 {[%clk 0:02:47.7]} 10... b6 {[%clk 0:02:56.4]} 11.
dxe5 {[%clk 0:02:21.1]} 11... dxe5 {[%clk 0:02:57]} 12. f5 {[%clk 0:02:22.4]}
12... Ba6 {[%clk 0:02:53.2]} 13. Qe1 {[%clk 0:02:13.7]} 13... Bb4 {[%clk
0:02:49.9]} 14. Bd2 {[%clk 0:02:01.3]} 14... Nc5 {[%clk 0:02:50.1]} 15. Rd1
{[%clk 0:01:59.5]} 15... Qc7 {[%clk 0:02:36.3]} 16. Nb5 {[%clk 0:01:44.9]} 16...
cxb5 {[%clk 0:02:23.8]} 17. Bxb4 {[%clk 0:01:40]} 17... bxa4 {[%clk 0:02:24.8]}
18. Nc3 {[%clk 0:00:39.9]} 18... Bxf1 {[%clk 0:02:23.2]} 19. Qxf1 {[%clk
0:00:41.8]} 19... Rad8 {[%clk 0:02:17.1]} 20. Nd5 {[%clk 0:00:40.8]} 20... Nxd5
{[%clk 0:02:16]} 21. exd5 {[%clk 0:00:42.7]} 21... e4 {[%clk 0:02:16.1]} 22. Kh2
{[%clk 0:00:41.6]} 22... e3 {[%clk 0:02:12]} 23. Qe2 {[%clk 0:00:37.8]} 23...
Ne4 {[%clk 0:02:03.8]} 24. Bxe4 {[%clk 0:00:34.1]} 24... Rxe4 {[%clk 0:02:05.7]}
25. d6 {[%clk 0:00:34.1]} 25... Qc4 {[%clk 0:02:01.8]} 26. Qxc4 {[%clk
0:00:19.9]} 26... Rxc4 {[%clk 0:02:03.7]} 27. c3 {[%clk 0:00:19.8]} 27... a5
{[%clk 0:02:01.3]} 28. Ba3 {[%clk 0:00:20.5]} 28... b5 {[%clk 0:02:00.7]} 29.
Rd3 {[%clk 0:00:18.5]} 29... Re4 {[%clk 0:01:56.8]} 0-1

[Event "*** Titled Tuesday Blitz"]
[Site "Chess.com"]
[Date "2019.07.02"]
[Round "7"]
[White "ASargsyan1"]
[Black "Alopekos"]
[Result "1-0"]
[WhiteElo "2602"]
[BlackElo "2464"]
[TimeControl "180+2"]
[EndTime "14:33:51 PDT"]
[Termination "ASargsyan1 won by resignation"]

1. d4 {[%clk 0:03:01.3]} 1... Nf6 {[%clk 0:03:00.6]} 2. c4 {[%clk 0:03:01.2]}
2... e6 {[%clk 0:03:01.8]} 3. Nf3 {[%clk 0:03:01.6]} 3... d5 {[%clk 0:03:02.7]}
4. Nc3 {[%clk 0:03:01.3]} 4... c5 {[%clk 0:03:02.9]} 5. cxd5 {[%clk 0:03:01.6]}
5... cxd4 {[%clk 0:03:02.9]} 6. Qxd4 {[%clk 0:02:45.8]} 6... exd5 {[%clk
0:03:03]} 7. Bg5 {[%clk 0:02:42.4]} 7... Be7 {[%clk 0:03:03.9]} 8. e3 {[%clk
0:02:42.6]} 8... O-O {[%clk 0:03:03.9]} 9. Qh4 {[%clk 0:02:38.9]} 9... h6 {[%clk
0:03:01.4]} 10. Bxh6 {[%clk 0:02:23]} 10... Ne4 {[%clk 0:02:31.1]} 11. Qh5
{[%clk 0:02:12.6]} 11... gxh6 {[%clk 0:02:27.2]} 12. Bd3 {[%clk 0:02:04.4]}
12... Be6 {[%clk 0:00:37.5]} 13. Qxh6 {[%clk 0:01:43.3]} 13... Nd7 {[%clk
0:00:11]} 14. Nxe4 {[%clk 0:01:34.4]} 14... dxe4 {[%clk 0:00:11.4]} 15. Bxe4
{[%clk 0:01:36.3]} 15... Nf6 {[%clk 0:00:04.2]} 16. Ng5 {[%clk 0:01:36.1]} 16...
Qa5+ {[%clk 0:00:03.8]} 17. Kf1 {[%clk 0:01:37.5]} 17... Bc4+ {[%clk 0:00:04.2]}
18. Kg1 {[%clk 0:01:38.6]} 18... Rfd8 {[%clk 0:00:03.5]} 19. Bh7+ {[%clk
0:01:35.2]} 19... Kh8 {[%clk 0:00:04.8]} 20. Bd3+ {[%clk 0:01:24.7]} 20... Kg8
{[%clk 0:00:05.6]} 21. Bxc4 {[%clk 0:01:26.2]} 1-0

[Event "*** Titled Tuesday Blitz"]
[Site "Chess.com"]
[Date "2019.07.02"]
[Round "7"]
[White "Samantha_Ross"]
[Black "Synctel"]
[Result "1-0"]
[WhiteElo "2039"]
[BlackElo "2005"]
[TimeControl "180+2"]
[EndTime "14:34:06 PDT"]
[Termination "Samantha_Ross won on time"]

1. c4 {[%clk 0:03:01.9]} 1... e5 {[%clk 0:02:56.5]} 2. d3 {[%clk 0:03:02]} 2...
Nf6 {[%clk 0:02:49.6]} 3. Nf3 {[%clk 0:03:03.1]} 3... Nc6 {[%clk 0:02:49.7]} 4.
g3 {[%clk 0:03:03]} 4... d5 {[%clk 0:02:50.6]} 5. cxd5 {[%clk 0:03:03.7]} 5...
Nxd5 {[%clk 0:02:52.5]} 6. Bg2 {[%clk 0:03:05.4]} 6... Be7 {[%clk 0:02:49]} 7.
O-O {[%clk 0:03:06.8]} 7... O-O {[%clk 0:02:47.9]} 8. Nc3 {[%clk 0:03:08.7]}
8... Be6 {[%clk 0:02:49.1]} 9. a3 {[%clk 0:03:07.7]} 9... a5 {[%clk 0:02:50.3]}
10. Nxd5 {[%clk 0:03:04.5]} 10... Bxd5 {[%clk 0:02:50.3]} 11. b3 {[%clk
0:03:06.4]} 11... Nd4 {[%clk 0:02:37.1]} 12. Nxd4 {[%clk 0:03:04.9]} 12... Bxg2
{[%clk 0:02:37.6]} 13. Kxg2 {[%clk 0:03:02.3]} 13... exd4 {[%clk 0:02:35.2]} 14.
Bf4 {[%clk 0:02:51.7]} 14... c5 {[%clk 0:02:19.7]} 15. e4 {[%clk 0:02:47.1]}
15... dxe3 {[%clk 0:01:59.1]} 16. Bxe3 {[%clk 0:02:37.2]} 16... Qd5+ {[%clk
0:01:53.8]} 17. Qf3 {[%clk 0:02:36.8]} 17... Rfd8 {[%clk 0:01:54.7]} 18. Rfd1
{[%clk 0:02:32.2]} 18... a4 {[%clk 0:01:23.4]} 19. bxa4 {[%clk 0:02:29.5]} 19...
Rxa4 {[%clk 0:01:20.3]} 20. Qxd5 {[%clk 0:02:20]} 20... Rxd5 {[%clk 0:01:22.2]}
21. Rab1 {[%clk 0:02:21.5]} 21... Rd7 {[%clk 0:00:51.7]} 22. Rb3 {[%clk
0:02:16.1]} 22... c4 {[%clk 0:00:20.7]} 23. Rc3 {[%clk 0:02:15.9]} 23... Bf6
{[%clk 0:00:16.9]} 24. d4 {[%clk 0:02:15.7]} 24... b5 {[%clk 0:00:15.6]} 25. Rb1
{[%clk 0:02:13.9]} 25... Ra5 {[%clk 0:00:11.2]} 26. Rc2 {[%clk 0:01:39.5]} 26...
Kf8 {[%clk 0:00:04.7]} 27. Bd2 {[%clk 0:01:39.7]} 27... Rxa3 {[%clk 0:00:04.3]}
28. Bb4+ {[%clk 0:01:40.8]} 1-0

[Event "*** Titled Tuesday Blitz"]
[Site "Chess.com"]
[Date "2019.07.02"]
[Round "7"]
[White "Genghis_K"]
[Black "rasmussvane"]
[Result "1/2-1/2"]
[WhiteElo "2838"]
[BlackElo "2894"]
[TimeControl "180+2"]
[EndTime "14:34:09 PDT"]
[Termination "Game drawn by repetition"]

1. d4 {[%clk 0:02:57.6]} 1... d5 {[%clk 0:03:00.5]} 2. Bf4 {[%clk 0:02:58.5]}
2... Nf6 {[%clk 0:03:00.4]} 3. e3 {[%clk 0:02:59]} 3... e6 {[%clk 0:03:02]} 4.
Nf3 {[%clk 0:02:58.6]} 4... Bd6 {[%clk 0:03:03.6]} 5. Nbd2 {[%clk 0:02:58.6]}
5... O-O {[%clk 0:03:04.5]} 6. Bd3 {[%clk 0:02:59.3]} 6... c5 {[%clk 0:03:03.4]}
7. c3 {[%clk 0:02:53.6]} 7... b6 {[%clk 0:03:04.4]} 8. Qe2 {[%clk 0:02:48.6]}
8... a5 {[%clk 0:03:04.1]} 9. O-O {[%clk 0:02:47.2]} 9... Ba6 {[%clk 0:03:04.8]}
10. Rfe1 {[%clk 0:02:44.8]} 10... Bxd3 {[%clk 0:03:00.7]} 11. Qxd3 {[%clk
0:02:46.7]} 11... Nc6 {[%clk 0:02:59.8]} 12. Rad1 {[%clk 0:02:29.4]} 12... Re8
{[%clk 0:02:54.6]} 13. Bxd6 {[%clk 0:02:25.8]} 13... Qxd6 {[%clk 0:02:55.3]} 14.
e4 {[%clk 0:02:27.3]} 14... dxe4 {[%clk 0:02:25.2]} 15. Nxe4 {[%clk 0:02:29.2]}
15... Nxe4 {[%clk 0:02:26.7]} 16. Qxe4 {[%clk 0:02:28.2]} 16... cxd4 {[%clk
0:02:27.7]} 17. Nxd4 {[%clk 0:02:25.5]} 17... Nxd4 {[%clk 0:02:28.9]} 18. Rxd4
{[%clk 0:02:27.4]} 18... Qc7 {[%clk 0:02:25.6]} 19. Red1 {[%clk 0:02:28.5]}
19... Rad8 {[%clk 0:02:24.4]} 20. a4 {[%clk 0:02:24.6]} 20... g6 {[%clk
0:02:16.9]} 21. Qd3 {[%clk 0:02:21.6]} 21... Rxd4 {[%clk 0:02:14.9]} 22. Qxd4
{[%clk 0:02:23.5]} 22... e5 {[%clk 0:02:15.7]} 23. Qd6 {[%clk 0:02:08]} 23...
Qc4 {[%clk 0:01:37.3]} 24. Qd7 {[%clk 0:01:49.3]} 24... Re6 {[%clk 0:01:33.7]}
25. h3 {[%clk 0:01:40]} 25... Kg7 {[%clk 0:00:52.9]} 26. Rd6 {[%clk 0:01:24.5]}
26... Qf4 {[%clk 0:00:52.4]} 27. g3 {[%clk 0:01:06.2]} 27... Qc1+ {[%clk
0:00:51.3]} 28. Kg2 {[%clk 0:01:07]} 28... Rxd6 {[%clk 0:00:51.5]} 29. Qxd6
{[%clk 0:01:08.6]} 29... Qxb2 {[%clk 0:00:52.7]} 30. Qxe5+ {[%clk 0:01:09.6]}
30... Kg8 {[%clk 0:00:53.7]} 31. Qe8+ {[%clk 0:01:06.2]} 31... Kg7 {[%clk
0:00:55.1]} 32. Qe5+ {[%clk 0:01:07.4]} 32... Kg8 {[%clk 0:00:56.4]} 33. Qe8+
{[%clk 0:01:08.1]} 33... Kg7 {[%clk 0:00:57.8]} 34. Qe5+ {[%clk 0:01:09.4]}
1/2-1/2

[Event "*** Titled Tuesday Blitz"]
[Site "Chess.com"]
[Date "2019.07.02"]
[Round "7"]
[White "GuerrieroFromLevant"]
[Black "1d4_1-0"]
[Result "0-1"]
[WhiteElo "2247"]
[BlackElo "2227"]
[TimeControl "180+2"]
[EndTime "14:34:09 PDT"]
[Termination "1d4_1-0 won by resignation"]

1. e4 {[%clk 0:03:01.9]} 1... e5 {[%clk 0:03:00.4]} 2. Nf3 {[%clk 0:03:02.5]}
2... Nc6 {[%clk 0:03:01.5]} 3. Bc4 {[%clk 0:03:03.3]} 3... Bc5 {[%clk
0:03:01.9]} 4. O-O {[%clk 0:03:04.1]} 4... Nf6 {[%clk 0:03:00.3]} 5. d3 {[%clk
0:03:05.3]} 5... d6 {[%clk 0:03:00.7]} 6. c3 {[%clk 0:02:57.6]} 6... O-O {[%clk
0:02:58.2]} 7. Re1 {[%clk 0:02:58.3]} 7... a6 {[%clk 0:02:57.4]} 8. a4 {[%clk
0:02:56.4]} 8... h6 {[%clk 0:02:55.5]} 9. b4 {[%clk 0:02:57.6]} 9... Ba7 {[%clk
0:02:55.5]} 10. Bb2 {[%clk 0:02:58.9]} 10... Re8 {[%clk 0:02:52.4]} 11. Qb3
{[%clk 0:02:59.3]} 11... Be6 {[%clk 0:02:53.2]} 12. Nbd2 {[%clk 0:03:00.3]}
12... d5 {[%clk 0:02:37.7]} 13. exd5 {[%clk 0:02:43.1]} 13... Bxd5 {[%clk
0:02:37.8]} 14. Bxd5 {[%clk 0:02:37.6]} 14... Nxd5 {[%clk 0:02:26.9]} 15. Nc4
{[%clk 0:02:36.2]} 15... Nf4 {[%clk 0:02:10.9]} 16. Ncxe5 {[%clk 0:02:19.4]}
16... Nxe5 {[%clk 0:02:06]} 17. Nxe5 {[%clk 0:02:20.1]} 17... Qg5 {[%clk
0:01:49.2]} 18. Qxf7+ {[%clk 0:02:06.3]} 18... Kh7 {[%clk 0:01:34]} 19. g3
{[%clk 0:02:05.5]} 19... Nh3+ {[%clk 0:01:22.3]} 20. Kg2 {[%clk 0:02:05]} 20...
Rf8 {[%clk 0:01:11.2]} 21. Qg6+ {[%clk 0:01:38.5]} 21... Qxg6 {[%clk 0:01:09.4]}
22. Nxg6 {[%clk 0:01:40.4]} 22... Rxf2+ {[%clk 0:00:54.8]} 23. Kxh3 {[%clk
0:01:40.2]} 23... Kxg6 {[%clk 0:00:53.7]} 24. Bc1 {[%clk 0:01:33]} 24... Raf8
{[%clk 0:00:48.2]} 25. Bf4 {[%clk 0:01:32.8]} 25... Rf5 {[%clk 0:00:39.9]} 26.
Kg4 {[%clk 0:01:21.6]} 26... Rxh2 {[%clk 0:00:35]} 27. Re6+ {[%clk 0:01:22.6]}
27... Rf6 {[%clk 0:00:35.5]} 28. Rae1 {[%clk 0:01:23.7]} 28... h5+ {[%clk
0:00:34.4]} 29. Kf3 {[%clk 0:01:19.8]} 29... Rf2+ {[%clk 0:00:35.5]} 30. Ke4
{[%clk 0:01:21]} 30... Rxe6+ {[%clk 0:00:36.5]} 0-1

[Event "*** Titled Tuesday Blitz"]
[Site "Chess.com"]
[Date "2019.07.02"]
[Round "7"]
[White "TheCount"]
[Black "ckgchess"]
[Result "0-1"]
[WhiteElo "2771"]
[BlackElo "2709"]
[TimeControl "180+2"]
[EndTime "14:34:21 PDT"]
[Termination "ckgchess won by resignation"]

1. Nf3 {[%clk 0:03:01.9]} 1... Nf6 {[%clk 0:03:00.8]} 2. g3 {[%clk 0:03:02.3]}
2... d5 {[%clk 0:03:01.5]} 3. Bg2 {[%clk 0:03:03.5]} 3... e6 {[%clk 0:03:03]} 4.
O-O {[%clk 0:03:03.8]} 4... Be7 {[%clk 0:03:04.6]} 5. b3 {[%clk 0:02:57]} 5...
O-O {[%clk 0:03:05.6]} 6. Bb2 {[%clk 0:02:57.2]} 6... c5 {[%clk 0:03:07]} 7. d4
{[%clk 0:02:58.3]} 7... cxd4 {[%clk 0:03:04.1]} 8. Nxd4 {[%clk 0:02:59]} 8... e5
{[%clk 0:03:02.9]} 9. Nf3 {[%clk 0:02:46.4]} 9... e4 {[%clk 0:03:03.2]} 10. Nd4
{[%clk 0:02:47.7]} 10... Nc6 {[%clk 0:03:04.1]} 11. c4 {[%clk 0:02:46.9]} 11...
Nxd4 {[%clk 0:02:43]} 12. Qxd4 {[%clk 0:02:46.9]} 12... dxc4 {[%clk 0:02:43.9]}
13. Qxc4 {[%clk 0:02:47.2]} 13... Be6 {[%clk 0:02:45.2]} 14. Qb5 {[%clk
0:02:45.2]} 14... Rc8 {[%clk 0:02:41.9]} 15. Nc3 {[%clk 0:02:42.7]} 15... e3
{[%clk 0:02:43]} 16. fxe3 {[%clk 0:02:39.6]} 16... Qd2 {[%clk 0:02:43.1]} 17.
Na4 {[%clk 0:02:29.3]} 17... Qxe3+ {[%clk 0:02:12.1]} 18. Kh1 {[%clk 0:02:28.4]}
18... Rc2 {[%clk 0:02:01.8]} 19. Qxb7 {[%clk 0:02:20.9]} 19... Bd5 {[%clk
0:01:38.8]} 20. Bxd5 {[%clk 0:01:36.6]} 20... Nxd5 {[%clk 0:01:40.7]} 21. Rae1
{[%clk 0:01:25.3]} 21... Qe4+ {[%clk 0:01:21.1]} 22. Kg1 {[%clk 0:01:26.4]}
22... Bg5 {[%clk 0:01:02.2]} 23. Rf3 {[%clk 0:01:27.3]} 23... Rxe2 {[%clk
0:00:55]} 24. Ref1 {[%clk 0:00:50.7]} 24... Be3+ {[%clk 0:00:50.7]} 25. Kh1
{[%clk 0:00:49.3]} 25... Qc2 {[%clk 0:00:48.3]} 0-1

[Event "*** Titled Tuesday Blitz"]
[Site "Chess.com"]
[Date "2019.07.02"]
[Round "7"]
[White "riconaipe"]
[Black "bubacik"]
[Result "0-1"]
[WhiteElo "2490"]
[BlackElo "2679"]
[TimeControl "180+2"]
[EndTime "14:34:30 PDT"]
[Termination "bubacik won by resignation"]

1. d4 {[%clk 0:03:01.9]} 1... Nf6 {[%clk 0:02:58.2]} 2. c4 {[%clk 0:02:51.3]}
2... c5 {[%clk 0:02:58.9]} 3. d5 {[%clk 0:02:48.7]} 3... b5 {[%clk 0:02:59.7]}
4. Nf3 {[%clk 0:02:45.7]} 4... g6 {[%clk 0:02:59.6]} 5. cxb5 {[%clk 0:02:46.5]}
5... Bg7 {[%clk 0:03:00.4]} 6. Nc3 {[%clk 0:02:46.6]} 6... O-O {[%clk
0:03:00.7]} 7. e4 {[%clk 0:02:47.8]} 7... d6 {[%clk 0:02:59.3]} 8. Be2 {[%clk
0:02:46.8]} 8... a6 {[%clk 0:03:00.5]} 9. b6 {[%clk 0:02:47.5]} 9... Nbd7 {[%clk
0:03:00.3]} 10. a4 {[%clk 0:02:48.6]} 10... Qxb6 {[%clk 0:02:57.9]} 11. Nd2
{[%clk 0:02:44]} 11... Rb8 {[%clk 0:02:54]} 12. O-O {[%clk 0:02:42]} 12... Qc7
{[%clk 0:02:50.2]} 13. a5 {[%clk 0:02:42]} 13... Rb4 {[%clk 0:02:44.5]} 14. Nc4
{[%clk 0:02:39]} 14... Kh8 {[%clk 0:02:33.9]} 15. f3 {[%clk 0:02:22]} 15... Nh5
{[%clk 0:02:30.3]} 16. Be3 {[%clk 0:02:21.2]} 16... Ne5 {[%clk 0:02:30.1]} 17.
Nxe5 {[%clk 0:01:59.9]} 17... Bxe5 {[%clk 0:02:32]} 18. Qd2 {[%clk 0:01:59.7]}
18... Bd4 {[%clk 0:02:19.5]} 19. Bxd4+ {[%clk 0:01:38.7]} 19... Rxd4 {[%clk
0:02:21.4]} 20. Qh6 {[%clk 0:01:23.8]} 20... Rg8 {[%clk 0:02:20.6]} 21. g4
{[%clk 0:01:08.1]} 21... Nf6 {[%clk 0:02:16]} 22. g5 {[%clk 0:01:08.8]} 22...
Nd7 {[%clk 0:02:07.4]} 23. f4 {[%clk 0:01:09.7]} 23... Qb8 {[%clk 0:02:06.6]}
24. f5 {[%clk 0:00:48.1]} 24... Qxb2 {[%clk 0:02:06.8]} 25. fxg6 {[%clk
0:00:30]} 25... Rxg6 {[%clk 0:02:08.7]} 26. Qh3 {[%clk 0:00:31.2]} 26... Rg7
{[%clk 0:01:49]} 27. Kh1 {[%clk 0:00:23.5]} 27... Qd2 {[%clk 0:01:47.5]} 28. Bg4
{[%clk 0:00:18.9]} 28... Rd3 {[%clk 0:01:43.9]} 29. Rf3 {[%clk 0:00:05.2]} 29...
Qxc3 {[%clk 0:01:41.8]} 30. Rxd3 {[%clk 0:00:06.2]} 30... Qxa1+ {[%clk
0:01:42.6]} 31. Rd1 {[%clk 0:00:06]} 31... Qa4 {[%clk 0:01:41]} 32. Rb1 {[%clk
0:00:06]} 32... Qxe4+ {[%clk 0:01:41]} 0-1

[Event "*** Titled Tuesday Blitz"]
[Site "Chess.com"]
[Date "2019.07.02"]
[Round "7"]
[White "Kawhi_Leonard2"]
[Black "colegiodemadrid"]
[Result "0-1"]
[WhiteElo "2314"]
[BlackElo "2449"]
[TimeControl "180+2"]
[EndTime "14:34:37 PDT"]
[Termination "colegiodemadrid won on time"]

1. e4 {[%clk 0:03:01.9]} 1... c5 {[%clk 0:03:00.8]} 2. Nf3 {[%clk 0:03:02.8]}
2... d6 {[%clk 0:03:01.7]} 3. d4 {[%clk 0:03:03.9]} 3... cxd4 {[%clk 0:03:03.2]}
4. Nxd4 {[%clk 0:03:05.2]} 4... Nf6 {[%clk 0:03:04.8]} 5. Nc3 {[%clk 0:03:06.2]}
5... a6 {[%clk 0:03:06.3]} 6. h3 {[%clk 0:03:06.6]} 6... e5 {[%clk 0:03:05.9]}
7. Nb3 {[%clk 0:03:06.7]} 7... Be7 {[%clk 0:02:55.5]} 8. f4 {[%clk 0:03:06.7]}
8... exf4 {[%clk 0:02:54.9]} 9. Bxf4 {[%clk 0:03:06.6]} 9... Nc6 {[%clk
0:02:56.3]} 10. Qd2 {[%clk 0:03:07.4]} 10... Be6 {[%clk 0:02:48.4]} 11. O-O-O
{[%clk 0:03:07.8]} 11... Ne5 {[%clk 0:02:49.6]} 12. g4 {[%clk 0:03:07]} 12...
Nfd7 {[%clk 0:02:50.1]} 13. Nd4 {[%clk 0:02:59.3]} 13... b5 {[%clk 0:02:42.8]}
14. Nf5 {[%clk 0:02:56.9]} 14... Bxf5 {[%clk 0:02:41.9]} 15. gxf5 {[%clk
0:02:56.8]} 15... O-O {[%clk 0:02:42.2]} 16. Nd5 {[%clk 0:02:55.2]} 16... Nf6
{[%clk 0:02:32.8]} 17. Nxf6+ {[%clk 0:02:42.8]} 17... Bxf6 {[%clk 0:02:33.3]}
18. Qxd6 {[%clk 0:02:43.6]} 18... Qxd6 {[%clk 0:02:30.6]} 19. Rxd6 {[%clk
0:02:43.8]} 19... Rfe8 {[%clk 0:02:32.1]} 20. Be2 {[%clk 0:02:15.1]} 20... Rac8
{[%clk 0:01:58.6]} 21. Rxa6 {[%clk 0:01:41.9]} 21... Nc4 {[%clk 0:01:59.2]} 22.
Bxc4 {[%clk 0:01:32.6]} 22... Rxc4 {[%clk 0:02:01.1]} 23. e5 {[%clk 0:01:11.2]}
23... Rxf4 {[%clk 0:02:01.7]} 24. exf6 {[%clk 0:01:12.1]} 24... Rxf5 {[%clk
0:02:03.2]} 25. Rg1 {[%clk 0:00:55.9]} 25... g6 {[%clk 0:02:00.9]} 26. Rb6
{[%clk 0:00:54.6]} 26... h5 {[%clk 0:02:01]} 27. Rd1 {[%clk 0:00:40.3]} 27...
Re2 {[%clk 0:01:44]} 28. a3 {[%clk 0:00:27.9]} 28... g5 {[%clk 0:01:44.9]} 29.
Kb1 {[%clk 0:00:26.7]} 29... Kh7 {[%clk 0:01:43.9]} 30. b3 {[%clk 0:00:14.8]}
30... Kg6 {[%clk 0:01:43]} 31. Rd4 {[%clk 0:00:15.5]} 31... Ree5 {[%clk
0:01:37.6]} 32. Rb4 {[%clk 0:00:08.2]} 32... Rc5 {[%clk 0:01:32.3]} 0-1

[Event "*** Titled Tuesday Blitz"]
[Site "Chess.com"]
[Date "2019.07.02"]
[Round "7"]
[White "hermionegrangermagic"]
[Black "Padenie_Zvezd"]
[Result "0-1"]
[WhiteElo "2363"]
[BlackElo "2730"]
[TimeControl "180+2"]
[EndTime "14:34:38 PDT"]
[Termination "Padenie_Zvezd won by resignation"]

1. e4 {[%clk 0:03:01.9]} 1... c5 {[%clk 0:02:55.9]} 2. Nf3 {[%clk 0:03:01.8]}
2... Nc6 {[%clk 0:02:56.2]} 3. d4 {[%clk 0:03:02.9]} 3... cxd4 {[%clk
0:02:58.1]} 4. Nxd4 {[%clk 0:03:04.5]} 4... g6 {[%clk 0:02:56.4]} 5. Nc3 {[%clk
0:03:04.5]} 5... Bg7 {[%clk 0:02:57.1]} 6. Be3 {[%clk 0:03:05.8]} 6... Nf6
{[%clk 0:02:58.5]} 7. Bc4 {[%clk 0:03:06.6]} 7... Qa5 {[%clk 0:02:59.6]} 8. O-O
{[%clk 0:03:02.6]} 8... O-O {[%clk 0:03:00.3]} 9. Bb3 {[%clk 0:02:59.2]} 9... d6
{[%clk 0:03:00.2]} 10. f3 {[%clk 0:02:54.9]} 10... Bd7 {[%clk 0:02:59.3]} 11.
Qd2 {[%clk 0:02:28.7]} 11... Rfc8 {[%clk 0:02:57.7]} 12. h3 {[%clk 0:02:13.4]}
12... Ne5 {[%clk 0:02:57]} 13. f4 {[%clk 0:02:08.7]} 13... Nc4 {[%clk 0:02:54]}
14. Bxc4 {[%clk 0:02:07.8]} 14... Rxc4 {[%clk 0:02:55.9]} 15. Qd3 {[%clk
0:02:01.9]} 15... Rac8 {[%clk 0:02:54.7]} 16. Bf2 {[%clk 0:01:37.4]} 16... e5
{[%clk 0:01:13.7]} 17. Nb3 {[%clk 0:01:24.4]} 17... Qa6 {[%clk 0:01:14.7]} 18.
fxe5 {[%clk 0:01:18]} 18... dxe5 {[%clk 0:01:16.6]} 19. Bh4 {[%clk 0:01:07.8]}
19... Rxc3 {[%clk 0:01:10.5]} 20. Qxa6 {[%clk 0:01:02.5]} 20... bxa6 {[%clk
0:01:12.4]} 21. Bxf6 {[%clk 0:00:47.9]} 21... Rxc2 {[%clk 0:01:10.5]} 22. Bxg7
{[%clk 0:00:45.2]} 22... Kxg7 {[%clk 0:01:12.4]} 23. Rab1 {[%clk 0:00:40.7]}
23... Be6 {[%clk 0:01:11]} 24. Rf3 {[%clk 0:00:33.2]} 24... Re2 {[%clk
0:01:10.6]} 25. Rd3 {[%clk 0:00:17.4]} 25... Rcc2 {[%clk 0:01:07.9]} 26. Rg3
{[%clk 0:00:15.9]} 26... h5 {[%clk 0:01:03.5]} 27. Rc1 {[%clk 0:00:15.9]} 27...
Rxc1+ {[%clk 0:01:03.7]} 28. Nxc1 {[%clk 0:00:16.4]} 28... Re1+ {[%clk
0:01:05.6]} 29. Kf2 {[%clk 0:00:17.8]} 29... Rxc1 {[%clk 0:01:07.5]} 30. Rc3
{[%clk 0:00:18.4]} 30... Rxc3 {[%clk 0:01:08.4]} 31. bxc3 {[%clk 0:00:19.5]}
31... Bxa2 {[%clk 0:01:10.3]} 0-1

[Event "*** Titled Tuesday Blitz"]
[Site "Chess.com"]
[Date "2019.07.02"]
[Round "7"]
[White "PNEPaul"]
[Black "przemekpiotrowski"]
[Result "1/2-1/2"]
[WhiteElo "1835"]
[BlackElo "2317"]
[TimeControl "180+2"]
[EndTime "14:34:41 PDT"]
[Termination "Game drawn by repetition"]

1. e4 {[%clk 0:03:01.9]} 1... c5 {[%clk 0:03:00]} 2. d4 {[%clk 0:03:02.3]} 2...
cxd4 {[%clk 0:02:58.9]} 3. c3 {[%clk 0:03:03.4]} 3... d3 {[%clk 0:02:57]} 4. c4
{[%clk 0:03:03.6]} 4... Nc6 {[%clk 0:02:57]} 5. Nc3 {[%clk 0:03:04.7]} 5... g6
{[%clk 0:02:57.1]} 6. Nf3 {[%clk 0:03:05.6]} 6... Bg7 {[%clk 0:02:57.2]} 7. Bxd3
{[%clk 0:03:06.6]} 7... d6 {[%clk 0:02:57.4]} 8. O-O {[%clk 0:03:07.2]} 8... Nf6
{[%clk 0:02:57.4]} 9. h4 {[%clk 0:03:07.4]} 9... Bg4 {[%clk 0:02:56.6]} 10. Be2
{[%clk 0:03:07.2]} 10... Rc8 {[%clk 0:02:54.1]} 11. Be3 {[%clk 0:03:08.1]} 11...
Bxf3 {[%clk 0:02:44.5]} 12. Bxf3 {[%clk 0:03:07.1]} 12... Ne5 {[%clk 0:02:46]}
13. Bxa7 {[%clk 0:03:03.4]} 13... Nxc4 {[%clk 0:02:43.2]} 14. e5 {[%clk
0:02:44.1]} 14... dxe5 {[%clk 0:02:18]} 15. Bxb7 {[%clk 0:02:44]} 15... Qxd1
{[%clk 0:02:11.7]} 16. Raxd1 {[%clk 0:02:40.2]} 16... Rc7 {[%clk 0:02:12.8]} 17.
Ba6 {[%clk 0:02:37.5]} 17... Nd6 {[%clk 0:01:26.4]} 18. Nb5 {[%clk 0:02:26.1]}
18... Rd7 {[%clk 0:01:18.4]} 19. Nxd6+ {[%clk 0:02:15.6]} 19... Rxd6 {[%clk
0:01:20.3]} 20. Bb5+ {[%clk 0:02:16.7]} 20... Kd8 {[%clk 0:01:19]} 21. Bc5
{[%clk 0:02:16]} 21... Rxd1 {[%clk 0:01:16.7]} 22. Rxd1+ {[%clk 0:02:16.5]}
22... Kc7 {[%clk 0:01:14.5]} 23. Bxe7 {[%clk 0:02:16.3]} 23... Kb6 {[%clk
0:01:14.9]} 24. Bxf6 {[%clk 0:02:14]} 24... Bxf6 {[%clk 0:01:15.1]} 25. Bc4
{[%clk 0:02:14.2]} 25... Bxh4 {[%clk 0:01:10.9]} 26. Bxf7 {[%clk 0:02:12.5]}
26... Rf8 {[%clk 0:01:08.7]} 27. Bd5 {[%clk 0:02:08.2]} 27... Bxf2+ {[%clk
0:00:56.7]} 28. Kh1 {[%clk 0:02:08.7]} 28... Bd4 {[%clk 0:00:57.3]} 29. b3
{[%clk 0:02:08.4]} 29... Kc5 {[%clk 0:00:54.2]} 30. Bc4 {[%clk 0:02:08]} 30...
e4 {[%clk 0:00:42.5]} 31. a4 {[%clk 0:02:07.2]} 31... e3 {[%clk 0:00:38.4]} 32.
a5 {[%clk 0:02:07.9]} 32... Bc3 {[%clk 0:00:38.5]} 33. a6 {[%clk 0:02:02.6]}
33... Bd2 {[%clk 0:00:36.3]} 34. Be2 {[%clk 0:01:56.5]} 34... Ra8 {[%clk
0:00:26.9]} 35. Ra1 {[%clk 0:01:55.7]} 35... Ra7 {[%clk 0:00:26.5]} 36. Ra4
{[%clk 0:01:52.1]} 36... h5 {[%clk 0:00:24.6]} 37. g3 {[%clk 0:01:49.9]} 37...
Kb6 {[%clk 0:00:21.5]} 38. Kg2 {[%clk 0:01:49.5]} 38... Rf7 {[%clk 0:00:22.2]}
39. Bf3 {[%clk 0:01:45.5]} 39... Ra7 {[%clk 0:00:23.2]} 40. Be2 {[%clk
0:01:45.9]} 40... Rf7 {[%clk 0:00:23.3]} 41. Bf3 {[%clk 0:01:46.7]} 41... Ra7
{[%clk 0:00:23.5]} 42. Be2 {[%clk 0:01:47.6]} 1/2-1/2